bitfinex-derivatives/quotes_ETHF0:USTF0_20260119
["timestamp","ask_amount","ask_price","bid_price","bid_amount"]
[1768787032468,0.87951968,3209.7,3208.4,0.00794248]
[1768787032666,0.87951968,3209.6,3208.4,0.00794248]
[1768787032867,0.87951968,3209.5,3208.4,0.00794248]
[1768787033074,4.09352604,3209.8,3208.4,0.00794248]
[1768787033277,0.87962513,3209.7,3208.4,0.00794248]
[1768787033574,0.87962513,3209.6,3208.4,0.00794248]
[1768787033776,4.392273,3209.5,3208.4,0.00794248]
[1768787033976,3.51264787,3209.5,3208.4,0.00794248]
[1768787036373,0.88101122,3209.4,3208.4,0.00794248]
[1768787036675,3.51264787,3209.5,3208.4,0.00794248]
[1768787036876,0.88101406,3209.4,3208.4,0.00794248]
[1768787037070,3.51264787,3209.5,3208.4,0.00794248]
[1768787037377,0.88101678,3209.4,3208.4,0.00794248]
[1768787037576,0.88101678,3209.3,3208.4,0.00794248]
[1768787037777,3.51264787,3209.5,3208.4,0.00794248]
[1768787037977,0.88162464,3209.4,3208.4,0.00794248]
[1768787038179,3.51264787,3209.5,3208.4,0.16385248]
[1768787038370,0.83583589,3209.7,3208.5,0.1559]
[1768787038571,0.88180536,3209.6,3208.5,0.1559]
[1768787038775,4.34848376,3209.9,3208.5,0.1559]
[1768787038974,4.39442393,3209.8,3208.5,0.1559]
[1768787039174,0.88177606,3209.7,3208.5,0.1559]
[1768787039473,3.51264787,3209.8,3208.5,0.1559]
[1768787039679,0.88167057,3209.7,3208.5,0.1559]
[1768787039879,3.51264787,3209.8,3208.5,0.1559]
[1768787040074,0.88167479,3209.7,3208.5,0.1559]
[1768787040276,3.51264787,3209.8,3208.5,0.1559]
[1768787040476,0.88166028,3209.7,3208.5,0.1559]
[1768787040674,0.83950268,3210.0,3208.8,0.15589]
[1768787040878,3.52057301,3210.2,3208.9,0.15588]
[1768787041178,0.88180258,3210.1,3208.9,0.15588]
[1768787041380,3.52057301,3210.2,3208.9,0.15588]
[1768787041978,3.52057301,3210.2,3209.0,0.15588]
[1768787050080,3.52057301,3210.2,3208.4,0.00794248]
[1768787050283,3.52057301,3210.2,3208.9,1.774]
[1768787052987,0.00792514,3210.2,3208.9,1.774]
[1768787053190,3.51264787,3211.0,3209.3,1.29506312]
[1768787053492,3.51264787,3210.8,3209.3,1.29506312]
[1768787053689,3.51264787,3210.8,3209.4,1.774]
[1768787053882,3.51264787,3210.8,3209.3,1.774]
[1768787054083,3.51606017,3210.8,3209.3,1.774]
[1768787055092,3.51606017,3210.8,3209.1,0.15587]
[1768787055289,3.51606017,3210.8,3209.2,1.774]
[1768787057089,3.51606017,3210.8,3209.3,1.29506312]
[1768787057692,3.51606017,3210.8,3209.1,0.15587]
[1768787057887,3.51606017,3210.8,3209.2,1.774]
[1768787058885,0.88095498,3210.7,3209.1,0.15587]
[1768787059085,3.51264787,3210.6,3209.1,0.15587]
[1768787060287,3.51264787,3210.6,3209.5,1.29506312]
[1768787060488,3.51264787,3210.6,3209.1,1.45093312]
[1768787063197,3.51264787,3210.6,3208.2,7.01960697]
[1768787063402,3.50970748,3210.4,3208.5,1.773]
[1768787063593,3.50970748,3210.1,3208.5,1.773]
[1768787063793,3.50970748,3209.9,3208.5,1.773]
[1768787064494,0.99532268,3210.2,3208.5,1.773]
[1768787064495,3.50970748,3209.7,3208.5,1.773]
[1768787065098,4.34921016,3210.5,3208.6,3.50275149]
[1768787065300,4.39093925,3210.4,3208.6,3.50275149]
[1768787065504,4.39093925,3210.3,3208.6,3.50275149]
[1768787065811,4.39093925,3210.2,3208.6,3.50275149]
[1768787066001,3.50970748,3210.2,3208.7,0.15589]
[1768787068399,4.39250022,3210.1,3208.7,0.15589]
[1768787068601,3.50970748,3210.1,3208.7,0.15589]
[1768787069002,3.50970748,3210.1,3208.8,1.773]
[1768787070409,4.39250642,3210.0,3208.8,1.773]
[1768787070601,3.50970748,3209.9,3208.8,1.773]
[1768787071308,4.34921016,3210.3,3208.8,1.773]
[1768787071612,0.88284272,3210.2,3208.8,1.773]
[1768787071814,0.88284272,3210.1,3208.8,1.773]
[1768787072013,0.88284272,3210.0,3208.8,1.773]
[1768787072309,3.50970748,3210.2,3208.8,1.773]
[1768787072509,0.88283758,3210.1,3208.8,1.773]
[1768787072708,0.88283758,3210.0,3208.8,1.773]
[1768787072910,3.50970748,3210.2,3208.8,1.773]
[1768787073111,0.88283425,3210.1,3208.8,1.773]
[1768787073322,0.88283425,3210.0,3208.8,1.773]
[1768787073612,3.50970748,3210.2,3208.8,1.773]
[1768787073799,0.88277229,3210.1,3208.8,1.773]
[1768787074003,0.88277229,3210.0,3208.8,1.773]
[1768787074203,3.50970748,3210.2,3208.8,1.773]
[1768787074406,5.23195168,3210.1,3208.6,1.773]
[1768787074606,0.88274152,3210.0,3208.6,1.773]
[1768787074810,0.83950268,3210.3,3208.8,0.15588]
[1768787075109,0.88275538,3210.2,3208.8,0.15588]
[1768787075304,4.39246286,3210.1,3208.8,0.15588]
[1768787075510,3.50970748,3210.1,3208.9,1.773]
[1768787076211,0.83950268,3210.5,3208.9,1.773]
[1768787076410,0.8826147,3210.4,3208.9,1.92888]
[1768787076612,3.50970748,3210.6,3209.1,0.15587]
[1768787076816,0.88267602,3210.5,3209.1,0.15587]
[1768787077110,0.0034123,3210.8,3209.2,3.34686149]
[1768787077311,0.0034123,3210.8,3209.7,0.15584]
[1768787077505,3.50970748,3211.5,3210.0,0.15583]
[1768787077713,0.88667024,3211.4,3210.1,1.773]
[1768787077913,3.50970748,3211.5,3210.1,1.773]
[1768787078114,0.88671923,3211.4,3210.1,1.773]
[1768787078313,3.50970748,3211.5,3210.1,1.773]
[1768787078508,3.51294082,3211.5,3210.1,1.773]
[1768787079110,3.51294082,3211.5,3210.5,0.00467114]
[1768787080312,3.35613617,3211.3,3209.9,1.773]
[1768787081314,3.35613617,3211.1,3209.8,1.773]
[1768787081613,3.35613617,3210.9,3210.3,0.00467114]
[1768787082010,3.35613617,3210.9,3209.4,0.15586]
[1768787083318,3.35613617,3210.9,3209.8,0.00467114]
[1768787084816,3.35613617,3210.9,3209.4,0.15586]
[1768787085120,3.35613617,3210.7,3209.5,1.29487446]
[1768787085421,3.35613617,3210.7,3209.8,1.29487446]
[1768787086018,3.35613617,3210.7,3209.5,1.29487446]
[1768787087713,3.35613617,3210.7,3209.2,1.29487446]
[1768787088020,3.35613617,3210.5,3209.2,1.29487446]
[1768787088216,4.65101063,3209.6,3208.4,0.00327134]
[1768787088519,0.83836082,3209.9,3208.7,1.29487446]
[1768787088716,4.24078402,3209.8,3208.7,0.00467114]
[1768787088913,4.24078402,3209.7,3208.7,0.00467114]
[1768787089116,0.00467114,3209.6,3208.7,0.00467114]
[1768787089314,3.36080731,3209.6,3208.7,0.00467114]
[1768787090213,0.00467114,3209.6,3208.7,0.00467114]
[1768787090413,3.36080731,3209.6,3208.7,0.00467114]
[1768787095626,0.00467114,3209.6,3208.7,0.00467114]
[1768787100639,3.48102475,3209.6,3208.7,0.00467114]
[1768787100839,3.48102475,3209.6,3208.4,0.00327134]
[1768787102937,3.48102475,3209.6,3207.9,0.15593]
[1768787103138,3.63687475,3209.6,3207.9,0.15593]
[1768787103342,3.47635361,3209.4,3207.6,3.117]
[1768787103543,3.47635361,3209.4,3207.7,1.773]
[1768787103948,3.47635361,3209.2,3207.7,1.77597577]
[1768787104246,3.47967214,3209.2,3207.7,1.77597577]
[1768787106540,3.47967214,3209.2,3207.7,0.00297577]
[1768787108150,0.00331853,3209.2,3207.7,3.51486156]
[1768787109248,3.63554214,3209.2,3207.7,1.77597577]
[1768787109658,3.47967214,3209.2,3207.7,1.77597577]
[1768787109954,0.00331853,3209.2,3207.7,5.28786156]
[1768787111854,0.00331853,3209.2,3207.9,3.51187579]
[1768787113055,0.00331853,3209.2,3208.5,1.29567602]
[1768787114149,0.00331853,3209.2,3207.9,3.51187579]
[1768787114354,3.47967214,3209.2,3208.0,1.773]
[1768787114551,3.47967214,3209.2,3207.9,1.45160602]
[1768787114751,3.47967214,3209.2,3208.0,1.773]
[1768787116044,0.00331853,3209.2,3208.2,1.29567602]
[1768787116648,0.00331853,3209.2,3208.5,1.29567602]
[1768787117539,0.00331853,3209.2,3208.2,1.29567602]
[1768787118941,0.00467114,3209.6,3208.9,1.29567602]
[1768787119961,0.00736333,3209.6,3208.9,1.29567602]
[1768787120158,0.00736333,3209.6,3208.6,1.29567602]
[1768787120860,0.00736333,3209.6,3208.5,0.1559]
[1768787121055,0.00736333,3209.6,3208.6,1.773]
[1768787123857,0.00736333,3209.6,3208.7,0.15589]
[1768787124162,0.00736333,3209.6,3208.7,3.43841447]
[1768787124558,0.00736333,3209.6,3208.8,0.00467114]
[1768787124961,3.54131528,3209.4,3208.1,1.773]
[1768787125465,0.88753291,3209.3,3208.1,1.773]
[1768787125664,3.54131528,3209.4,3208.1,1.773]
[1768787125958,0.88753647,3209.3,3208.1,1.773]
[1768787126150,3.54131528,3209.4,3208.1,1.773]
[1768787126352,4.42885249,3209.3,3207.7,3.28550024]
[1768787126552,3.54131528,3209.2,3207.7,0.00297577]
[1768787126859,4.42846762,3209.1,3207.7,1.77597577]
[1768787127162,3.54131528,3209.1,3207.7,1.77597577]
[1768787127560,0.83836082,3209.3,3207.8,3.28252447]
[1768787127763,0.88683382,3209.2,3207.8,3.28252447]
[1768787127964,0.88683382,3209.1,3207.8,3.28252447]
[1768787128156,0.99422082,3209.4,3207.8,3.28252447]
[1768787128460,0.88647765,3209.3,3207.8,3.28252447]
[1768787128650,1.72483847,3209.3,3207.8,3.28252447]
[1768787129060,0.88647765,3209.3,3207.8,3.28252447]
[1768787129261,0.83836082,3209.5,3207.8,3.28252447]
[1768787129462,1.72507198,3209.5,3207.8,3.28252447]
[1768787130357,1.72507198,3209.5,3207.9,0.15593]
[1768787130559,0.88671116,3209.4,3208.0,3.28252447]
[1768787130756,3.54867861,3209.6,3208.0,3.28252447]
[1768787130961,0.886866,3209.5,3208.0,3.28252447]
[1768787131158,3.54867861,3209.6,3208.0,3.28252447]
[1768787131362,3.54131528,3209.4,3207.9,0.15593]
[1768787131555,0.88684516,3209.3,3207.9,0.15593]
[1768787131755,3.54131528,3209.4,3207.9,0.15593]
[1768787131957,0.88684946,3209.3,3207.9,0.15593]
[1768787132266,0.84572415,3209.6,3207.9,3.43845447]
[1768787132463,0.88684307,3209.5,3208.3,3.28252447]
[1768787132769,0.00736333,3209.6,3208.3,3.43843447]
[1768787133357,0.00736333,3209.6,3208.4,1.773]
[1768787134461,0.00736333,3209.6,3208.3,3.43843447]
[1768787134667,0.00736333,3209.6,3208.5,1.773]
[1768787135066,0.00736333,3209.6,3208.7,0.00467114]
[1768787136160,0.88768764,3209.5,3208.7,0.00467114]
[1768787136359,0.88768764,3209.4,3208.7,0.00467114]
[1768787136566,0.00736333,3209.6,3208.7,0.00467114]
[1768787136756,0.88777875,3209.5,3208.7,0.00467114]
[1768787136952,0.88777875,3209.4,3208.7,0.00467114]
[1768787137158,0.00736333,3209.6,3208.7,0.00467114]
[1768787137368,0.88783503,3209.5,3208.7,0.00467114]
[1768787137555,0.88783503,3209.4,3208.7,0.00467114]
[1768787137755,0.00736333,3209.6,3208.7,0.00467114]
[1768787151477,4.48461896,3209.5,3208.7,0.00467114]
[1768787151679,0.88830851,3209.4,3208.7,0.00467114]
[1768787151872,3.59631045,3209.5,3208.7,0.00467114]
[1768787152174,0.88821901,3209.4,3208.7,0.00467114]
[1768787152373,0.00736333,3209.6,3208.7,0.00467114]
[1768787152672,0.88806915,3209.5,3208.7,0.00467114]
[1768787152873,0.88806915,3209.4,3208.7,0.00467114]
[1768787153077,0.00736333,3209.6,3208.7,0.00467114]
[1768787153280,0.88801445,3209.5,3208.7,0.00467114]
[1768787153485,0.88801445,3209.4,3208.7,0.00467114]
[1768787153681,0.00736333,3209.6,3208.7,0.00467114]
[1768787153881,0.88782153,3209.5,3208.7,0.00467114]
[1768787154072,0.88782153,3209.4,3208.7,0.00467114]
[1768787154273,0.88801195,3209.3,3207.8,1.29528759]
[1768787154466,3.30232847,3209.3,3207.9,4.889]
[1768787155276,0.8878642,3209.2,3207.9,4.889]
[1768787155575,3.30232847,3209.3,3207.9,4.889]
[1768787155875,0.88756385,3209.2,3207.9,4.889]
[1768787156076,3.30232847,3209.3,3207.9,4.889]
[1768787156277,0.88755715,3209.2,3207.9,4.889]
[1768787156478,3.30232847,3209.3,3207.9,4.889]
[1768787156678,0.88751487,3209.2,3208.0,1.773]
[1768787156876,3.30232847,3209.3,3208.1,1.773]
[1768787157080,0.88751253,3209.2,3208.1,1.773]
[1768787157280,3.30232847,3209.3,3208.1,1.773]
[1768787157480,0.88764145,3209.2,3208.1,1.773]
[1768787157683,3.30232847,3209.3,3208.1,1.773]
[1768787157876,4.18995618,3209.2,3208.1,1.773]
[1768787158072,3.30232847,3209.2,3208.1,1.773]
[1768787158776,3.30232847,3209.2,3207.7,0.00297577]
[1768787158976,0.88764438,3209.1,3207.8,1.773]
[1768787159176,4.18989631,3209.0,3207.9,1.773]
[1768787159380,0.88756784,3208.9,3207.9,1.773]
[1768787159585,3.30232847,3209.0,3208.1,0.00311416]
[1768787159781,0.88735961,3208.9,3208.1,0.00311416]
[1768787159980,3.30232847,3209.0,3208.1,0.00311416]
[1768787160181,0.88733121,3208.9,3208.1,0.00311416]
[1768787160383,0.88730368,3208.8,3207.7,0.00297577]
[1768787160582,3.30232847,3209.0,3207.7,0.00297577]
[1768787160784,4.18964323,3208.9,3207.7,0.00297577]
[1768787160979,0.88731476,3208.8,3207.7,0.00297577]
[1768787161174,3.30232847,3208.9,3207.7,0.00297577]
[1768787161380,3.30232847,3208.6,3207.2,1.773]
[1768787162084,0.88668956,3208.5,3207.2,1.773]
[1768787162289,3.30232847,3208.6,3207.2,1.77588018]
[1768787162996,3.30232847,3208.4,3207.2,1.77588018]
[1768787170197,3.30232847,3208.2,3207.2,1.77588018]
[1768787170887,3.30232847,3208.2,3207.2,0.00288018]
[1768787173197,3.30232847,3208.2,3206.6,3.2512958]
[1768787173391,3.30232847,3208.2,3206.6,5.0242958]
[1768787173791,0.00467114,3207.7,3206.6,5.0242958]
[1768787174197,0.00467114,3207.7,3206.6,5.02676573]
[1768787175107,0.00467114,3207.7,3206.6,0.00246993]
[1768787177091,3.30232847,3207.5,3205.5,3.2512958]
[1768787177291,3.30232847,3207.1,3205.0,3.2512958]
[1768787177485,3.45829847,3207.1,3205.0,5.0242958]
[1768787177688,3.45829847,3207.1,3204.7,3.2512958]
[1768787177689,3.45832847,3206.6,3204.7,3.2512958]
[1768787177900,3.30232847,3206.6,3204.7,3.4073858]
[1768787178095,3.30518288,3206.6,3204.7,0.00391782]
[1768787178297,3.30232847,3206.4,3204.7,0.00391782]
[1768787178597,3.30700712,3206.0,3204.7,0.00391782]
[1768787178799,3.30232847,3205.6,3204.7,0.00391782]
[1768787179001,3.30232847,3205.6,3203.7,1.68]
[1768787179299,3.30232847,3205.6,3203.5,0.25224187]
[1768787179300,3.30232847,3204.9,3203.4,1.45727596]
[1768787179510,0.83760471,3205.4,3203.8,1.29528759]
[1768787179700,3.30232847,3205.5,3204.2,1.29528759]
[1768787179999,3.30232847,3205.5,3204.2,0.00402889]
[1768787180199,3.30232847,3205.0,3203.4,1.45727596]
[1768787181297,3.30232847,3205.0,3203.4,1.45967622]
[1768787181603,3.30232847,3205.8,3203.5,3.2512958]
[1768787182195,3.30232847,3205.8,3203.5,3.4074358]
[1768787182395,3.30232847,3205.8,3203.7,3.2512958]
[1768787182699,3.30232847,3205.8,3203.8,5.12521122]
[1768787182896,3.30232847,3205.8,3203.9,3.35221122]
[1768787183210,0.00467865,3206.0,3204.4,3.35221122]
[1768787183704,0.00467865,3206.0,3204.5,1.773]
[1768787183900,3.40615959,3206.0,3204.5,1.773]
[1768787184106,3.40615959,3206.0,3203.9,3.35221122]
[1768787184299,3.40615959,3206.0,3204.0,4.894]
[1768787184499,3.40615959,3206.0,3204.1,3.35221122]
[1768787184695,0.00467865,3206.0,3204.3,3.50831122]
[1768787184889,0.00467865,3206.0,3204.5,3.35221122]
[1768787185302,0.00285441,3206.6,3205.0,3.35221122]
[1768787185502,0.00285441,3206.6,3205.1,5.28228122]
[1768787185803,3.40148094,3208.0,3205.7,3.50825122]
[1768787186402,3.40148094,3208.0,3205.8,1.774]
[1768787186701,0.00467865,3207.2,3205.8,1.77665923]
[1768787187100,3.40615959,3207.2,3205.8,0.00265923]
[1768787188196,3.40615959,3207.2,3205.1,0.15607]
[1768787188597,3.40615959,3207.2,3204.7,3.35221122]
[1768787188900,3.40615959,3207.2,3205.3,5.22084534]
[1768787189095,3.30615959,3207.2,3205.3,5.22084534]
[1768787189300,3.30615959,3207.2,3205.3,5.22374494]
[1768787190208,0.00467865,3206.6,3205.3,5.22374494]
[1768787190901,0.00467865,3206.6,3205.3,0.0028996]
[1768787194502,0.00467865,3206.6,3205.4,1.86863412]
[1768787195011,3.30615959,3207.2,3205.4,2.02468412]
[1768787195201,3.30615959,3207.2,3205.5,0.15605]
[1768787196408,0.00467865,3206.7,3205.5,0.15605]
[1768787196908,3.30615959,3207.2,3205.8,0.00467865]
[1768787197502,0.15597,3207.1,3205.8,0.00467865]
[1768787197704,3.40148094,3206.9,3205.3,0.0028996]
[1768787198108,3.46930801,3206.7,3205.3,0.0028996]
[1768787198306,3.62529801,3206.7,3205.3,0.0028996]
[1768787199012,3.46930801,3206.2,3205.3,0.0028996]
[1768787199207,3.46930801,3206.2,3205.7,0.00467865]
[1768787199409,3.46930801,3206.2,3204.5,1.86863412]
[1768787200213,3.46930801,3206.2,3204.5,1.87139024]
[1768787201007,3.46930801,3206.2,3204.5,0.00275612]
[1768787201412,3.46930801,3206.0,3204.5,0.00275612]
[1768787202114,3.46930801,3205.8,3203.5,0.15614]
[1768787202506,3.62533801,3205.8,3203.5,0.15614]
[1768787202705,3.46930801,3205.3,3203.4,1.45727596]
[1768787202905,1.72392402,3205.7,3203.4,1.45727596]
[1768787202906,3.46930801,3205.1,3203.4,1.45727596]
[1768787203112,3.47197093,3205.1,3203.4,1.45985064]
[1768787203511,0.00467865,3204.6,3203.4,1.45985064]
[1768787204105,3.47398666,3204.6,3203.4,1.45985064]
[1768787205312,3.47398666,3204.6,3203.1,1.773]
[1768787205313,3.47398666,3204.6,3202.8,1.86863412]
[1768787206208,3.47398666,3204.6,3203.3,1.86863412]
[1768787206609,0.00467865,3204.6,3203.3,1.86863412]
[1768787208308,0.00266292,3205.1,3203.3,5.14548059]
[1768787208517,0.00266292,3205.1,3203.8,1.86863412]
[1768787208823,0.00266292,3205.1,3203.8,5.14548059]
[1768787209716,0.00467865,3204.8,3203.8,3.27684647]
[1768787210422,0.00266292,3205.1,3203.8,3.27684647]
[1768787211026,3.46930801,3206.2,3204.2,1.86863412]
[1768787211318,0.83095293,3206.3,3204.2,5.14548059]
[1768787211319,3.46930801,3206.0,3204.2,5.14548059]
[1768787211509,3.46930801,3205.8,3203.7,5.14548059]
[1768787211709,3.46930801,3205.8,3203.8,4.895]
[1768787212110,0.00467865,3205.1,3203.8,4.895]
[1768787214031,0.00467865,3205.1,3203.6,1.774]
[1768787214225,0.00467865,3205.1,3203.5,1.93014]
[1768787215527,0.00467865,3205.1,3203.2,8.23800144]
[1768787215528,3.3678445,3205.1,3203.2,3.24836732]
[1768787215723,3.3678445,3205.1,3203.3,1.774]
[1768787215921,3.3678445,3205.1,3203.8,0.00467865]
[1768787216327,0.00467865,3205.1,3203.9,1.86863412]
[1768787216512,0.00467865,3205.1,3203.9,5.11700144]
[1768787216828,0.00467865,3205.1,3203.9,3.24836732]
[1768787217830,0.00467865,3205.1,3203.8,0.16080865]
[1768787218123,3.36316585,3205.0,3202.8,3.25082395]
[1768787218327,0.00240673,3205.8,3204.2,1.86863412]
[1768787218529,0.00240673,3205.8,3204.2,5.11700144]
[1768787218915,3.51552758,3206.0,3204.2,5.11700144]
[1768787219119,3.51552758,3206.0,3204.2,3.24836732]
[1768787219321,3.36316585,3205.9,3204.0,1.93012]
[1768787219529,3.36316585,3205.6,3203.7,3.24836732]
[1768787219725,3.3678445,3205.4,3203.7,3.24836732]
[1768787219925,0.00786618,3205.4,3203.9,1.86863412]
[1768787220120,0.00786618,3205.4,3203.7,3.24836732]
[1768787220428,3.52708203,3205.4,3203.5,1.87814]
[1768787220631,3.36316585,3205.2,3203.4,1.86863412]
[1768787220828,3.36316585,3205.2,3203.6,1.774]
[1768787221617,0.00786618,3205.4,3203.6,5.02236732]
[1768787221826,0.00786618,3205.4,3204.0,1.86863412]
[1768787222024,0.00786618,3205.4,3204.1,3.24836732]
[1768787222727,0.00786618,3205.4,3203.9,0.15612]
[1768787222921,0.00786618,3205.4,3203.9,1.93012]
[1768787223127,0.00786618,3205.4,3204.0,1.86863412]
[1768787223328,0.00786618,3205.4,3204.0,5.11700144]
[1768787223529,0.00786618,3205.4,3204.1,3.24836732]
[1768787223835,3.36316585,3206.3,3204.4,0.00467865]
[1768787224037,0.88748137,3206.2,3204.4,0.00467865]
[1768787224233,0.88748137,3206.1,3204.4,0.00467865]
[1768787224534,3.36316585,3206.2,3204.5,1.86863412]
[1768787224736,3.36564642,3206.2,3204.5,1.86863412]
[1768787225030,0.00248057,3206.2,3205.0,1.86863412]
[1768787225332,0.83095293,3206.9,3205.1,3.40443732]
[1768787225527,4.19411878,3207.2,3205.5,1.86863412]
[1768787225836,0.83095293,3207.5,3205.5,5.11700144]
[1768787226230,1.72312574,3207.5,3205.6,3.24836732]
[1768787226432,0.888207,3207.4,3206.2,0.00467865]
[1768787226740,0.00396581,3207.5,3206.2,0.00467865]
[1768787227034,3.36108066,3207.7,3206.2,0.00467865]
[1768787227229,0.15595,3207.5,3206.2,0.00467865]
[1768787227430,1.87540429,3207.5,3206.2,0.00467865]
[1768787227626,0.88850136,3207.4,3206.2,0.00467865]
[1768787228022,0.89211403,3207.4,3206.2,0.00467865]
[1768787228234,0.00361267,3207.4,3206.2,0.00467865]
[1768787230233,0.00361267,3207.4,3206.2,1.77767865]
[1768787230441,0.00361267,3207.4,3206.2,0.00467865]
[1768787230442,3.36677852,3207.4,3206.2,0.00467865]
[1768787230842,0.00361267,3207.4,3206.2,0.00467865]
[1768787231133,3.36677852,3207.4,3206.2,0.00467865]
[1768787233541,3.52272852,3207.4,3206.2,0.00467865]
[1768787233734,3.36677852,3207.4,3205.5,0.00230555]
[1768787233940,3.36316585,3207.2,3205.5,0.00230555]
[1768787234241,3.51913585,3207.2,3205.5,0.00230555]
[1768787234942,3.51913585,3207.2,3206.0,0.00467865]
[1768787235145,3.51311385,3207.2,3206.0,0.00467865]
[1768787235534,0.00361267,3207.4,3206.0,0.00467865]
[1768787235939,0.00361267,3207.4,3205.5,0.00230555]
[1768787236146,0.15597,3207.2,3205.5,3.25067287]
[1768787236645,0.15597,3207.2,3205.5,0.00230555]
[1768787237139,0.00467865,3206.7,3205.5,0.00230555]
[1768787237343,0.00467865,3206.7,3205.5,3.25067287]
[1768787238144,0.00467865,3206.7,3205.5,0.00230555]
[1768787239746,0.00361267,3207.4,3205.8,0.00467865]
[1768787240835,0.00361267,3207.4,3205.8,3.25304597]
[1768787241236,0.00361267,3207.4,3206.2,1.86863412]
[1768787241640,3.36677852,3207.4,3205.8,0.00467865]
[1768787242844,0.15595,3207.6,3205.8,0.00467865]
[1768787242845,0.98686293,3208.3,3206.2,3.56040862]
[1768787243144,3.41332517,3208.0,3206.2,3.56040862]
[1768787243350,3.41196782,3208.0,3206.0,0.15602]
[1768787243541,3.41333517,3207.7,3205.8,1.77667865]
[1768787243747,3.25739517,3207.5,3205.8,0.00467865]
[1768787243947,0.00221486,3207.7,3206.1,5.42904274]
[1768787244146,0.00221486,3207.7,3206.2,3.56040862]
[1768787244341,0.00221486,3207.7,3205.8,0.00467865]
[1768787244541,0.00221486,3207.7,3205.8,3.56508727]
[1768787244942,3.25961003,3207.7,3205.8,3.56508727]
[1768787245849,3.41555003,3207.7,3205.8,3.56508727]
[1768787246043,3.25739517,3207.5,3205.8,3.56508727]
[1768787247344,3.25739517,3207.5,3205.8,0.00467865]
[1768787248353,0.87957455,3207.4,3205.8,0.00467865]
[1768787248552,3.25739517,3207.5,3205.8,0.00467865]
[1768787248753,0.87965388,3207.4,3205.8,0.00467865]
[1768787248952,3.25739517,3207.5,3205.8,0.00467865]
[1768787249153,0.87946537,3207.4,3205.8,0.00467865]
[1768787249350,3.25739517,3207.5,3205.8,0.00467865]
[1768787249548,0.87978451,3207.4,3205.8,0.00467865]
[1768787249754,3.25739517,3207.5,3205.8,0.00467865]
[1768787250057,4.13719526,3207.4,3205.8,0.00467865]
[1768787250256,3.25739517,3207.4,3205.8,0.00467865]
[1768787251455,3.40736517,3207.2,3205.8,0.00467865]
[1768787251651,3.25739517,3207.0,3205.8,0.00467865]
[1768787252459,0.88140038,3206.9,3205.8,0.00467865]
[1768787252762,3.25739517,3207.0,3205.8,0.00467865]
[1768787252958,0.88140134,3206.9,3205.8,0.00467865]
[1768787253150,3.25739517,3207.0,3205.8,0.00467865]
[1768787253344,0.88134922,3206.9,3205.8,0.00467865]
[1768787253553,0.98092293,3207.2,3205.8,0.00467865]
[1768787253753,0.88199293,3207.1,3205.8,0.00467865]
[1768787253955,0.88199293,3207.0,3205.8,0.00467865]
[1768787254258,4.0883481,3207.5,3205.8,3.56508727]
[1768787254450,0.88267608,3207.4,3205.8,3.56508727]
[1768787254652,0.88267608,3207.3,3205.8,3.56508727]
[1768787254854,0.88267608,3207.2,3205.8,3.56508727]
[1768787255059,4.0883481,3207.5,3205.8,3.56508727]
[1768787255260,0.88241815,3207.4,3205.8,3.56508727]
[1768787255462,0.88241815,3207.3,3205.8,3.56508727]
[1768787255763,0.88241815,3207.2,3205.8,3.56508727]
[1768787256055,4.0883481,3207.5,3205.8,3.56508727]
[1768787256254,0.8827961,3207.4,3205.8,3.56508727]
[1768787256456,0.8827961,3207.3,3205.8,3.56508727]
[1768787256654,0.8827961,3207.2,3205.8,3.56508727]
[1768787256853,0.83095293,3207.4,3205.8,3.56508727]
[1768787257055,1.7138029,3207.4,3205.8,3.56508727]
[1768787258766,1.7138029,3207.4,3205.8,3.72111727]
[1768787258967,0.83316779,3207.7,3206.0,3.61516513]
[1768787259367,0.83316779,3207.7,3206.1,3.45914513]
[1768787259570,1.7162313,3207.7,3206.1,3.45914513]
[1768787259862,1.71401644,3207.6,3206.0,0.15602]
[1768787260366,5.07865138,3207.5,3205.8,0.00467865]
[1768787260571,1.71401644,3207.4,3205.8,1.77667865]
[1768787260862,4.19558787,3207.3,3205.8,0.00467865]
[1768787261063,4.24769845,3207.2,3205.8,0.00467865]
[1768787261364,3.36463494,3206.7,3205.8,0.00467865]
[1768787261565,0.88306351,3206.6,3205.8,0.00467865]
[1768787261874,3.36463494,3206.2,3204.1,3.61525513]
[1768787262061,4.19558787,3205.9,3204.1,3.45914513]
[1768787262256,4.19558787,3205.7,3203.6,3.45914513]
[1768787262460,3.36463494,3205.3,3203.5,3.12]
[1768787262765,3.36463494,3205.1,3203.5,3.12]
[1768787263065,3.36463494,3204.7,3203.5,0.00285043]
[1768787263280,0.98703293,3204.8,3202.4,3.45914513]
[1768787263281,3.52073494,3204.5,3202.4,3.45914513]
[1768787263463,3.36463494,3204.5,3202.4,3.45914513]
[1768787264156,3.36463494,3204.5,3202.4,3.46138585]
[1768787264765,0.00467865,3203.8,3202.4,0.00224072]
[1768787265271,0.00467865,3203.8,3202.4,3.46138585]
[1768787265471,3.36463494,3205.0,3202.4,3.61758585]
[1768787265676,3.36463494,3205.0,3202.9,3.45914513]
[1768787267077,3.36463494,3205.0,3202.8,0.00467865]
[1768787267578,3.36463494,3205.0,3202.8,3.46382378]
[1768787272473,3.36463494,3205.0,3202.8,0.00467865]
[1768787273087,0.15838334,3205.1,3202.8,0.00467865]
[1768787273088,3.35195324,3204.8,3202.8,0.00467865]
[1768787273283,0.15609,3204.7,3202.8,0.00467865]
[1768787273489,3.35195324,3204.6,3202.8,0.00467865]
[1768787275777,0.1561,3204.4,3202.8,0.00467865]
[1768787276082,3.35195324,3204.3,3202.8,0.00467865]
[1768787276284,3.50806324,3204.3,3202.8,0.00467865]
[1768787277484,3.50806324,3204.3,3202.4,0.00224072]
[1768787277694,3.35195324,3203.8,3202.4,0.00224072]
[1768787279780,3.35195324,3203.6,3202.4,0.00224072]
[1768787280593,0.15613,3203.7,3202.7,0.00467865]
[1768787280795,0.00467865,3203.9,3202.7,0.00467865]
[1768787281090,3.35663189,3203.9,3202.4,0.00224072]
[1768787283082,3.35195324,3203.5,3202.4,0.00224072]
[1768787284186,0.00467865,3203.9,3202.4,0.00224072]
[1768787284692,0.00467865,3203.9,3202.4,3.5805087]
[1768787285388,3.35663189,3203.9,3202.4,0.00224072]
[1768787286185,3.51276189,3203.9,3202.4,0.00224072]
[1768787286886,3.35195324,3203.7,3200.0,0.4]
[1768787287085,3.35195324,3202.8,3200.4,3.73455798]
[1768787287292,3.35195324,3202.6,3200.0,3.97826798]
[1768787287591,3.35663189,3201.9,3200.1,3.57826798]
[1768787287798,0.00467865,3201.9,3200.3,3.57826798]
[1768787288090,0.00846805,3201.9,3200.9,3.57826798]
[1768787288392,0.00846805,3201.9,3201.2,0.006247]
[1768787288592,3.36042129,3201.9,3200.3,0.00302606]